[Event "CZE-ch 2020"]
[Site "Pilsen"]
[Date "2020.08.31"]
[Round "9.16"]
[White "Gnojek, Petr"]
[Black "Simek, Petr"]
[Result "0-1"]
[ECO "E35"]
[WhiteElo "2225"]
[BlackElo "2324"]
[Annotator "RC"]
[PlyCount "90"]
[EventDate "2020.08.23"]
[EventType "swiss"]
[EventCountry "CZE"]
[SourceTitle "playchess.com"]
[Source "ChessBase"]
[SourceQuality "1"]
[TimeControl "40/5400+30:1800+30"]

1. d4 {[%emt 0:00:00]} Nf6 {[%emt 0:00:00]} 2. c4 {[%emt 0:00:00]} e6 {[%emt 0:00:00]} 3. Nc3 {[%emt 0:00:00]} Bb4 {[%emt 0:00:00]} 4. Qc2 {[%emt 0:00:00]} d5 {[%emt 0:00:03]} 5. cxd5 {[%emt 0:00:00]} exd5 {[%emt 0:00:09]} 6. Bg5 {[%emt 0:00:13]} h6 {[%emt 0:00:21]} 7. Bh4 {[%emt 0:00:39]} c5 {[%emt 0:00:13]} 8. dxc5 {[%emt 0:00:32]} Be6 {[%emt 0:00:25]} 9. e3 {[%emt 0:01:04]} O-O {[%emt 0:00:06]} 10. Nf3 {[%emt 0:04:04]} Nbd7 {[%emt 0:00:11]} 11. Be2 {[%emt 0:01:06]} Rc8 {[%emt 0:00:22]} 12. O-O {[%emt 0:04:38]} Nxc5 {[%emt 0:00:49]} 13. Rac1 {[%emt 0:02:19]} Nce4 {[%emt 0:09:04]} 14. Qd3 {[%emt 0:09:06]} Qa5 {[%emt 0:10:10]} 15. Bxf6 {[%emt 0:08:13]} Nxf6 {[%emt 0:00:10]} 16. Nd4 {[%emt 0:13:14]} a6 {[%emt 0:33:20]} 17. Nb3 {[%emt 0:07:09]} Qb6 {[%emt 0:07:07]} 18. Bf3 {[%emt 0:02:06]} Bxc3 {[%emt 0:08:22]} 19. Rxc3 {[%emt 0:00:24]} Rxc3 {[%emt 0:00:06]} 20. Qxc3 {[%emt 0:00:13]} Rc8 {[%emt 0:00:05]} 21. Qd4 {[%emt 0:01:51]} Qxd4 {[%emt 0:00:09]} 22. Nxd4 {[%emt 0:00:12]} Kf8 {[%emt 0:00:14]} 23. Rd1 {[%emt 0:00:52]} Ke7 {[%emt 0:00:12]} 24. Kf1 {[%emt 0:02:17]} Rc5 {[%emt 0:07:51]} 25. h3 {[%emt 0:06:25]} Ne8 {[%emt 0:02:40]} 26. Ke2 {[%emt 0:03:10]} Nd6 {[%emt 0:00:38]} 27. b3 {[%emt 0:03:17]} a5 {[%emt 0:01:20]} 28. Kd2 {[%emt 0:04:43]} Kf6 {[%emt 0:02:33]} 29. Rc1 {[%emt 0:02:17]} Rxc1 {[%emt 0:03:54]} 30. Kxc1 {[%emt 0:00:11]} Ke5 {[%emt 0:00:41]} 31. Kd2 {[%emt 0:02:50]} g5 {[%emt 0:02:57]} 32. Kd3 {[%emt 0:03:02]} Bd7 {[%emt 0:06:26]} 33. g4 {[%emt 0:10:09]} b6 {[%emt 0:04:25]} 34. a4 {[%emt 0:03:14]} Ne4 {[%emt 0:01:11]} 35. Bxe4 {[%emt 0:00:06]} dxe4+ {[%emt 0:00:02]} 36. Kc4 {[%emt 0:00:10]} f5 {[%emt 0:00:03]} 37. gxf5 {[%emt 0:04:25]} Bxf5 {[%emt 0:00:21]} 38. Kb5 {[%emt 0:01:22]} h5 {[%emt 0:00:18]} 39. Kxb6 {[%emt 0:00:08]} h4 {[%emt 0:00:29]} 40. Kxa5 {[%emt 0:02:52]} g4 {[%emt 0:00:55]} 41. Kb6 {[%emt 0:03:27]} gxh3 {[%emt 0:02:52]} 42. a5 {[%emt 0:00:03]} h2 {[%emt 0:04:48]} 43. a6 {[%emt 0:01:13]} h1=Q {[%emt 0:00:29]} 44. a7 {[%emt 0:00:05]} Qa1 {[%emt 0:00:32]} 45. Kb7 {[%emt 0:06:18]} Be6 {[%emt 0:01:12]} 0-1

[Event "CZE-ch 2020"]
[Site "Pilsen"]
[Date "2020.08.31"]
[Round "9.31"]
[White "Smolik, Jachym"]
[Black "Kures, Michael"]
[Result "1/2-1/2"]
[ECO "A46"]
[WhiteElo "2121"]
[BlackElo "2019"]
[Annotator "RC"]
[PlyCount "104"]
[EventDate "2020.08.23"]
[EventType "swiss"]
[EventCountry "CZE"]
[SourceTitle "playchess.com"]
[Source "ChessBase"]
[SourceQuality "1"]
[TimeControl "40/5400+30:1800+30"]

1. d4 {[%emt 0:08:43]} Nf6 {[%emt 0:00:13]} 2. Nf3 {[%emt 0:00:09]} d6 {[%emt 0:00:25]} 3. c4 {[%emt 0:00:13]} Nbd7 {[%emt 0:00:40]} 4. Nc3 {[%emt 0:01:26]} g6 {[%emt 0:00:09]} 5. e4 {[%emt 0:00:30]} Bg7 {[%emt 0:00:25]} 6. Be2 {[%emt 0:00:03]} O-O {[%emt 0:00:10]} 7. Bg5 {[%emt 0:00:53]} e5 {[%emt 0:00:28]} 8. d5 {[%emt 0:00:16]} a5 {[%emt 0:01:30]} 9. Nd2 {[%emt 0:00:36]} Qe8 {[%emt 0:00:59]} 10. h4 {[%emt 0:07:55]} h6 {[%emt 0:01:05]} 11. Be3 {[%emt 0:00:02]} Nh7 {[%emt 0:01:38]} 12. Nb5 {[%emt 0:13:17]} Qd8 {[%emt 0:00:21]} 13. h5 {[%emt 0:02:40]} g5 {[%emt 0:02:35]} 14. g4 {[%emt 0:00:57]} Nc5 {[%emt 0:00:43]} 15. f3 {[%emt 0:01:18]} c6 {[%emt 0:01:16]} 16. Nc3 {[%emt 0:02:03]} Na6 {[%emt 0:00:27]} 17. dxc6 {[%emt 0:01:32]} bxc6 {[%emt 0:01:03]} 18. Nb3 {[%emt 0:01:29]} Be6 {[%emt 0:01:30]} 19. Qd2 {[%emt 0:04:54]} Qc7 {[%emt 0:04:12]} 20. Rd1 {[%emt 0:09:45]} Rfd8 {[%emt 0:00:38]} 21. Na4 {[%emt 0:01:42]} c5 {[%emt 0:01:50]} 22. Nc3 {[%emt 0:02:52]} Nb4 {[%emt 0:02:16]} 23. Nb5 {[%emt 0:03:23]} Qb6 {[%emt 0:01:20]} 24. Nc1 {[%emt 0:12:07]} Bf8 {[%emt 0:02:20]} 25. a3 {[%emt 0:02:59]} Nc6 {[%emt 0:00:55]} 26. Na2 {[%emt 0:00:41]} Nd4 {[%emt 0:00:28]} 27. Nac3 {[%emt 0:01:49]} Be7 {[%emt 0:08:16]} 28. Bxd4 {[%emt 0:01:10]} cxd4 {[%emt 0:00:30]} 29. Nd5 {[%emt 0:00:54]} Bxd5 {[%emt 0:02:02]} 30. exd5 {[%emt 0:06:11]} Nf6 {[%emt 0:01:37]} 31. Bd3 {[%emt 0:00:42]} Kg7 {[%emt 0:00:23]} 32. Qe2 {[%emt 0:00:43]} Rab8 {[%emt 0:00:25]} 33. Kf1 {[%emt 0:01:44]} Nd7 {[%emt 0:01:39]} 34. Kg2 {[%emt 0:02:00]} a4 {[%emt 0:01:03]} 35. Bc2 {[%emt 0:05:19]} Nc5 {[%emt 0:00:09]} 36. Qd2 {[%emt 0:00:15]} Ra8 {[%emt 0:01:42]} 37. Rhe1 {[%emt 0:00:41]} Rd7 {[%emt 0:00:56]} 38. Qb4 {[%emt 0:01:16]} Qa5 {[%emt 0:00:38]} 39. Qxa5 {[%emt 0:02:25]} Rxa5 {[%emt 0:00:08]} 40. Kf2 {[%emt 0:00:59]} Rd8 {[%emt 0:01:39]} 41. Nxd4 {[%emt 0:04:29]} exd4 {[%emt 0:00:51]} 42. Rxe7 {[%emt 0:00:01]} Kf8 {[%emt 0:03:15]} 43. Re2 {[%emt 0:00:20]} Rb8 {[%emt 0:00:17]} 44. Bf5 {[%emt 0:05:47]} Nb3 {[%emt 0:01:03]} 45. Bc2 {[%emt 0:07:33]} Nc5 {[%emt 0:01:23]} 46. Rxd4 {[%emt 0:09:56]} Rxb2 {[%emt 0:00:34]} 47. Bd1 {[%emt 0:00:23]} Rb1 {[%emt 0:00:35]} 48. f4 {[%emt 0:03:37]} gxf4 {[%emt 0:00:45]} 49. Bc2 {[%emt 0:00:20]} Ra1 50. Rxf4 Rxa3 51. g5 hxg5 52. Rf5 Rh3 1/2-1/2